bitfinex-derivatives/quotes_BTCF0:USTF0_20250324
["timestamp","ask_amount","ask_price","bid_price","bid_amount"]
[1742799472381,0.03599204,87156.0,87155.0,0.1829558]
[1742799472879,0.18082644,87156.0,87155.0,0.1829558]
[1742799473381,0.06609204,87156.0,87155.0,0.1829558]
[1742799474479,0.06609204,87156.0,87155.0,0.1499558]
[1742799477281,0.18082644,87156.0,87155.0,0.1499558]
[1742799477583,0.06609204,87156.0,87155.0,0.1499558]
[1742799477977,0.06609204,87156.0,87155.0,0.1174558]
[1742799479277,0.06609204,87156.0,87155.0,0.1496558]
[1742799480677,0.18082644,87156.0,87155.0,0.1174558]
[1742799481180,0.65636389,87156.0,87155.0,0.00272]
[1742799481381,0.29556389,87156.0,87155.0,0.002]
[1742799481682,0.18082949,87156.0,87155.0,0.1167358]
[1742799481987,0.29556389,87156.0,87155.0,0.1174958]
[1742799482373,0.29556389,87156.0,87155.0,0.1808958]
[1742799484377,0.18082949,87156.0,87155.0,0.1808958]
[1742799484578,0.29556389,87156.0,87155.0,0.1808958]
[1742799485288,0.29556389,87156.0,87155.0,0.1481958]
[1742799486291,0.29556389,87156.0,87155.0,0.1805958]
[1742799486787,0.29556389,87156.0,87155.0,0.1174958]
[1742799487977,0.18082949,87156.0,87131.0,0.0573834]
[1742799488194,0.1721306,87143.0,87142.0,0.1721187]
[1742799488492,0.1728106,87143.0,87142.0,0.1727187]
[1742799488989,0.29880355,87143.0,87142.0,0.1727187]
[1742799489292,0.30681885,87143.0,87142.0,0.1727187]
[1742799489590,0.30781885,87143.0,87142.0,0.1727187]
[1742799490591,0.29980355,87143.0,87142.0,0.1727187]
[1742799491186,0.30080355,87143.0,87142.0,0.1727187]
[1742799491386,0.40172163,87143.0,87142.0,0.1727187]
[1742799492993,0.0573784,87139.0,87135.0,0.00045906]
[1742799493190,0.1147608,87136.0,87135.0,0.00045906]
[1742799493395,0.11564081,87136.0,87135.0,0.00045906]
[1742799493597,0.11564081,87136.0,87135.0,0.11522116]
[1742799493790,0.23039537,87136.0,87135.0,0.00109906]
[1742799494093,0.23039537,87136.0,87135.0,0.11522116]
[1742799494294,0.23039537,87136.0,87135.0,0.11582116]
[1742799494492,0.34959537,87136.0,87135.0,0.11582116]
[1742799494788,0.34959537,87136.0,87135.0,0.11522116]
[1742799494992,0.35059537,87136.0,87135.0,0.11522116]
[1742799496797,0.35159537,87136.0,87135.0,0.11522116]
[1742799496998,0.35159537,87136.0,87135.0,0.11582116]
[1742799497495,0.35159537,87136.0,87135.0,0.11522116]
[1742799497683,0.35159537,87136.0,87135.0,0.11586116]
[1742799497889,0.41529537,87136.0,87135.0,0.11586116]
[1742799503894,0.41529537,87136.0,87135.0,0.00109906]
[1742799504094,0.41529537,87136.0,87135.0,0.00045906]
[1742799504397,0.41529537,87136.0,87135.0,0.11522116]
[1742799504590,0.41529537,87136.0,87135.0,0.11582116]
[1742799504797,0.41529537,87136.0,87135.0,0.11522116]
[1742799505098,0.41529537,87136.0,87135.0,0.11582116]
[1742799506398,0.29609537,87136.0,87135.0,0.11582116]
[1742799506601,0.00288001,87136.0,87135.0,0.11582116]
[1742799506900,0.24053977,87152.0,87151.0,0.114741]
[1742799507093,0.24121977,87152.0,87151.0,0.476141]
[1742799507401,0.00068,87152.0,87151.0,0.476141]
[1742799507604,0.1147359,87155.0,87154.0,0.1147371]
[1742799507793,0.1154159,87155.0,87154.0,0.1154171]
[1742799507997,0.1804159,87155.0,87154.0,0.1154171]
[1742799508491,0.1804159,87155.0,87154.0,0.1769171]
[1742799509995,0.1814159,87155.0,87154.0,0.1769171]
[1742799510194,0.1824159,87155.0,87154.0,0.1779171]
[1742799528312,0.29715466,87155.0,87154.0,0.00168]
[1742799528809,0.29715466,87155.0,87154.0,0.1164171]
[1742799530315,0.41627466,87155.0,87154.0,0.1164171]
[1742799531924,0.41627466,87155.0,87154.0,0.00168]
[1742799532127,0.41627466,87155.0,87154.0,0.1164171]
[1742799533027,0.41627466,87155.0,87154.0,0.00168]
[1742799533429,0.41627466,87155.0,87154.0,0.001]
[1742799533625,0.41627466,87155.0,87154.0,0.00164]
[1742799534025,0.41627466,87155.0,87154.0,0.1163771]
[1742799538320,0.41627466,87155.0,87154.0,0.1468771]
[1742799541337,0.41627466,87155.0,87154.0,0.1163771]
[1742799541741,0.41627466,87155.0,87154.0,0.1798771]
[1742799543431,0.29715466,87155.0,87154.0,0.1798771]
[1742799544139,0.29715466,87155.0,87154.0,0.1479771]
[1742799545238,0.29715466,87155.0,87154.0,0.1163771]
[1742799546232,0.29715466,87155.0,87154.0,0.1480771]
[1742799547741,0.32735466,87155.0,87154.0,0.1480771]
[1742799551745,0.33531592,87155.0,87154.0,0.1480771]
[1742799553243,0.33531592,87155.0,87154.0,0.00164]
[1742799553942,0.33531592,87155.0,87154.0,0.1163771]
[1742799554244,0.33531592,87155.0,87154.0,0.1475771]
[1742799554746,0.33531592,87155.0,87154.0,0.1790771]
[1742799555233,0.32735466,87155.0,87154.0,0.1790771]
[1742799556148,0.32735466,87155.0,87154.0,0.1475771]
[1742799556945,0.42868164,87155.0,87154.0,0.1475771]
[1742799557345,0.42868164,87155.0,87154.0,0.1806771]
[1742799558639,0.39848164,87155.0,87154.0,0.1806771]
[1742799559349,0.11904,87165.0,87164.0,0.1147239]
[1742799559543,0.15078,87165.0,87164.0,0.1147239]
[1742799559741,0.15078,87165.0,87164.0,0.1155239]
[1742799560046,0.2655026,87165.0,87164.0,0.1486239]
[1742799560440,0.2975026,87165.0,87164.0,0.1486239]
[1742799560837,0.2985026,87165.0,87164.0,0.1486239]
[1742799561747,0.2995026,87165.0,87164.0,0.1486239]
[1742799564449,0.4142282,87165.0,87164.0,0.1155239]
[1742799564845,0.42327132,87165.0,87164.0,0.1155239]
[1742799566439,0.42330116,87165.0,87164.0,0.0008]
[1742799566639,0.1147252,87163.0,87162.0,0.1147262]
[1742799566847,0.12459816,87163.0,87162.0,0.1155262]
[1742799567247,0.13256041,87163.0,87162.0,0.1155262]
[1742799567449,0.24738271,87163.0,87162.0,0.1155262]
[1742799567951,0.24838271,87163.0,87162.0,0.1155262]
[1742799568449,0.2493697,87163.0,87162.0,0.1165262]
[1742799569153,0.24140745,87163.0,87162.0,0.1165262]
[1742799570138,0.24140745,87163.0,87162.0,0.0018]
[1742799570343,0.24934228,87163.0,87162.0,0.001]
[1742799570852,0.24934228,87163.0,87162.0,0.00188]
[1742799571339,0.24934228,87163.0,87162.0,0.03268]
[1742799571541,0.24934228,87163.0,87162.0,0.06268]
[1742799571954,0.24934228,87163.0,87162.0,0.03268]
[1742799572955,0.24934228,87163.0,87162.0,0.00188]
[1742799573147,0.24934228,87163.0,87162.0,0.001]
[1742799573351,0.24934228,87163.0,87162.0,0.0018]
[1742799576539,0.24950851,87163.0,87162.0,0.0018]
[1742799577352,0.24950851,87163.0,87162.0,0.001]
[1742799577548,0.24950851,87163.0,87162.0,0.0018]
[1742799577851,0.24950851,87163.0,87162.0,0.1157266]
[1742799578252,0.24950851,87163.0,87162.0,0.1166066]
[1742799580546,0.24951387,87163.0,87162.0,0.1166066]
[1742799580948,0.24157904,87163.0,87162.0,0.1166066]
[1742799582654,0.34765583,87163.0,87162.0,0.1166066]
[1742799583360,0.35558343,87163.0,87162.0,0.1166066]
[1742799585062,0.24085823,87163.0,87162.0,0.1166066]
[1742799585261,0.1182024,87163.0,87162.0,0.1166066]
[1742799585560,0.1174024,87163.0,87162.0,0.1166066]
[1742799585760,0.1182024,87163.0,87162.0,0.1782066]
[1742799585963,0.2329276,87163.0,87162.0,0.1782066]
[1742799586650,0.2647276,87163.0,87162.0,0.1782066]
[1742799586863,0.15865081,87163.0,87162.0,0.1782066]
[1742799587060,0.1493252,87163.0,87162.0,0.1782066]
[1742799587760,0.1175252,87163.0,87162.0,0.1782066]
[1742799587956,0.1175252,87163.0,87162.0,0.18969051]
[1742799589464,0.1175252,87163.0,87162.0,0.1782066]
[1742799589662,0.1477252,87163.0,87162.0,0.1782066]
[1742799591956,0.1778252,87163.0,87162.0,0.1782066]
[1742799603368,0.0631,87163.0,87162.0,0.1782066]
[1742799603974,0.0942,87163.0,87162.0,0.1782066]
[1742799604169,0.2089252,87163.0,87162.0,0.1782066]
[1742799604364,0.0942,87163.0,87162.0,0.1782066]
[1742799604565,0.11884,87185.0,87172.0,0.1147134]
[1742799604770,0.0328,87175.0,87172.0,0.4763534]
[1742799604967,0.0316,87175.0,87172.0,0.4763534]
[1742799605278,0.0316,87175.0,87174.0,0.1147108]
[1742799605475,0.0316,87175.0,87174.0,0.1155108]
[1742799605663,0.0644,87175.0,87174.0,0.1155108]
[1742799605869,0.0644,87175.0,87174.0,0.1468108]
[1742799606574,0.06500001,87175.0,87174.0,0.1468108]
[1742799606773,0.06500001,87175.0,87174.0,0.1488108]
[1742799606968,0.0644,87175.0,87174.0,0.1488108]
[1742799607170,0.0652,87175.0,87174.0,0.1488108]
[1742799607369,0.1799094,87175.0,87174.0,0.0028]
[1742799607571,0.29462184,87175.0,87174.0,0.1175108]
[1742799607771,0.29462184,87175.0,87174.0,0.0028]
[1742799607975,0.29450184,87175.0,87174.0,0.002]
[1742799608276,0.29450184,87175.0,87174.0,0.1167108]
[1742799608473,0.29450184,87175.0,87174.0,0.0028]
[1742799608870,0.30619597,87175.0,87174.0,0.1175108]
[1742799610880,0.06508,87175.0,87174.0,0.1175108]
[1742799611178,0.0644,87175.0,87174.0,0.1789108]
[1742799611383,0.00017161,87183.0,87177.0,0.0573528]
[1742799611579,0.1146851,87194.0,87187.0,0.1146937]
[1742799611882,0.06162001,87188.0,87187.0,0.1158137]
[1742799612073,0.00112001,87188.0,87187.0,0.1158137]
[1742799612277,0.0605,87195.0,87189.0,0.114691]
[1742799612470,0.24113978,87190.0,87189.0,0.595331]
[1742799612983,0.24113978,87190.0,87189.0,0.60660593]
[1742799613573,0.24113978,87190.0,87189.0,0.60860593]
[1742799613882,0.24113978,87190.0,87189.0,0.60960593]
[1742799614374,0.27333978,87190.0,87189.0,0.118731]
[1742799614676,0.29328241,87190.0,87189.0,0.118731]
[1742799614874,0.30471769,87190.0,87189.0,0.117691]
[1742799615075,0.33471769,87190.0,87189.0,0.118731]
[1742799615278,0.33471769,87190.0,87189.0,0.117731]
[1742799615473,0.33471769,87190.0,87189.0,0.121731]
[1742799616087,0.33471769,87190.0,87189.0,0.123731]
[1742799616481,0.33471769,87190.0,87189.0,0.121731]
[1742799616882,0.33471769,87190.0,87189.0,0.120731]
[1742799617282,0.45347769,87190.0,87189.0,0.00604]
[1742799617477,0.11472,87168.0,87167.0,0.1147192]
[1742799617786,0.2294373,87168.0,87167.0,0.00072]
[1742799617976,0.1147226,87165.0,87160.0,0.1147289]
[1742799618184,0.11532261,87165.0,87164.0,0.00093214]
[1742799618382,0.11532261,87165.0,87164.0,0.00017214]
[1742799618581,0.14592261,87165.0,87164.0,0.00017214]
[1742799618782,0.25564821,87165.0,87164.0,0.00017214]
[1742799618981,0.1147371,87154.0,87152.0,0.4181696]
[1742799619290,0.1154571,87154.0,87153.0,0.32204276]
[1742799619488,0.1094571,87154.0,87153.0,0.32204276]
[1742799619688,0.28729718,87154.0,87153.0,0.32204276]
[1742799620190,0.28729718,87154.0,87153.0,0.32804276]
[1742799620582,0.31889718,87154.0,87153.0,0.32804276]
[1742799620894,0.00072,87154.0,87153.0,0.32804276]
[1742799621387,0.00072,87154.0,87153.0,0.121498]
[1742799621590,0.0318,87161.0,87160.0,0.1147292]
[1742799621790,0.03252,87161.0,87160.0,0.1154492]
[1742799621988,0.06412,87161.0,87160.0,0.1154492]
[1742799622392,0.06412,87161.0,87160.0,0.1788492]
[1742799622691,0.1788479,87161.0,87160.0,0.5456492]
[1742799622992,0.1788479,87161.0,87160.0,0.1214492]
[1742799623291,0.1798479,87161.0,87160.0,0.1234492]
[1742799624989,0.06512,87161.0,87160.0,0.1234492]
[1742799625193,0.0644,87161.0,87160.0,0.4842492]
[1742799625580,0.06500001,87161.0,87160.0,0.5477492]
[1742799626091,0.17972791,87161.0,87160.0,0.5477492]
[1742799626291,0.17972791,87161.0,87160.0,0.1869492]
[1742799627288,0.17972791,87161.0,87160.0,0.00872]
[1742799627486,0.29445878,87161.0,87160.0,0.008]
[1742799627888,0.29445878,87161.0,87160.0,0.00872]
[1742799629391,0.41321878,87161.0,87160.0,0.00872]
[1742799629692,0.41321878,87161.0,87160.0,0.1234492]
[1742799629890,0.29849088,87161.0,87160.0,0.1234492]
[1742799630093,0.00160001,87161.0,87160.0,0.1234492]
[1742799630289,0.001,87161.0,87160.0,0.1873492]
[1742799630885,0.00176,87161.0,87160.0,0.1873492]
[1742799631085,0.06786,87161.0,87160.0,0.1873492]
[1742799633993,0.1825879,87161.0,87160.0,0.1873492]
[1742799634897,0.06786,87161.0,87160.0,0.1873492]
[1742799635796,0.03486,87161.0,87160.0,0.1873492]
[1742799635997,0.0341,87161.0,87160.0,0.1873492]
[1742799636295,0.03482,87161.0,87160.0,0.1873492]
[1742799638898,0.03482,87161.0,87160.0,0.5481492]
[1742799639796,0.06512,87161.0,87160.0,0.5481492]
[1742799641803,0.1798479,87161.0,87160.0,0.5481492]
[1742799642198,0.06512,87161.0,87160.0,0.5481492]
[1742799643405,0.1798479,87161.0,87160.0,0.5481492]
[1742799647295,0.06512,87161.0,87160.0,0.5481492]
[1742799647703,0.00172,87161.0,87160.0,0.5481492]
[1742799647899,0.001,87161.0,87160.0,0.5481492]
[1742799648498,0.4079,87201.0,87170.0,0.0573576]
[1742799648700,0.1764094,87175.0,87174.0,0.1147108]
[1742799648906,0.03242,87175.0,87174.0,0.1154308]
[1742799649509,0.03242,87175.0,87174.0,0.1770308]
[1742799650011,0.1471294,87175.0,87174.0,0.1770308]
[1742799651206,0.1471294,87175.0,87174.0,0.1810308]
[1742799651407,0.03242,87175.0,87174.0,0.1810308]
[1742799653100,0.03242,87175.0,87174.0,0.1820308]
[1742799653305,0.0317,87175.0,87174.0,0.1820308]
[1742799653709,0.03242,87175.0,87174.0,0.1820308]
[1742799654213,0.06452,87175.0,87174.0,0.1820308]
[1742799656519,0.054348,87175.0,87174.0,0.1820308]
[1742799657914,0.053628,87175.0,87174.0,0.1820308]
[1742799658112,0.054348,87175.0,87174.0,0.1820308]
[1742799658420,0.053628,87175.0,87174.0,0.1820308]
[1742799658809,0.054348,87175.0,87174.0,0.1820308]
[1742799659709,0.054348,87175.0,87174.0,0.5428308]
[1742799660118,0.053628,87175.0,87174.0,0.5421108]
[1742799660812,0.053628,87175.0,87174.0,0.6607108]
[1742799661213,0.05362759,87175.0,87174.0,0.6607108]
[1742799662319,0.16833699,87175.0,87174.0,0.5991108]
[1742799662713,0.05362759,87175.0,87174.0,0.5991108]
[1742799664821,0.05362759,87175.0,87174.0,0.6308108]
[1742799665215,0.05434759,87175.0,87174.0,0.2707308]
[1742799665526,0.05434759,87175.0,87174.0,0.6315308]
[1742799666113,0.05434759,87175.0,87174.0,0.6619308]
[1742799667414,0.05362759,87175.0,87174.0,0.6619308]
[1742799669013,0.05430759,87175.0,87174.0,0.6619308]
[1742799669220,0.05362759,87175.0,87174.0,0.6619308]
[1742799670211,0.05362759,87175.0,87174.0,0.6569308]
[1742799670416,0.05362759,87175.0,87174.0,0.6639308]
[1742799671112,0.05362759,87175.0,87174.0,0.6649308]
[1742799671322,0.05362759,87175.0,87174.0,0.6345308]
[1742799671628,0.05362759,87175.0,87174.0,0.5159308]
[1742799672125,0.05362759,87175.0,87174.0,0.5129308]
[1742799672321,0.05362759,87175.0,87174.0,0.5159308]
[1742799672722,0.05362759,87175.0,87174.0,0.5079308]
[1742799672925,0.05362759,87175.0,87174.0,0.5149308]
[1742799684736,0.05362759,87175.0,87174.0,0.1541308]
[1742799685034,0.0542276,87175.0,87174.0,0.5149308]
[1742799685240,0.05362759,87175.0,87174.0,0.5149308]
[1742799690537,0.05438759,87175.0,87174.0,0.5149308]
[1742799690841,0.16833699,87175.0,87174.0,0.4832308]
[1742799691145,0.168937,87175.0,87174.0,0.4832308]
[1742799691548,0.28364944,87175.0,87174.0,0.4832308]
[1742799692044,0.16894004,87175.0,87174.0,0.4832308]
[1742799693045,0.1803912,87175.0,87174.0,0.4832308]
[1742799694739,0.2951006,87175.0,87174.0,0.4832308]
[1742799695945,0.28364944,87175.0,87174.0,0.4832308]
[1742799696651,0.28364944,87175.0,87174.0,0.5137308]
[1742799697044,0.29534224,87175.0,87174.0,0.5137308]
[1742799697342,0.28364944,87175.0,87174.0,0.5137308]
[1742799697742,0.168937,87175.0,87174.0,0.5137308]
[1742799700551,0.168937,87175.0,87174.0,0.4832308]
[1742799701772,0.28364944,87175.0,87174.0,0.4832308]
[1742799704156,0.28364944,87175.0,87174.0,0.36852]
[1742799705467,0.28364944,87175.0,87174.0,0.4832308]
[1742799711071,0.28364944,87175.0,87174.0,0.36852]
[1742799711373,0.11472,87167.0,87166.0,0.00017214]
[1742799711568,0.11536,87167.0,87166.0,0.00081214]
[1742799711966,0.1147331,87157.0,87153.0,0.20654476]
[1742799712276,0.1455344,87156.0,87155.0,0.1147358]
[1742799712468,0.0616,87156.0,87155.0,0.1153358]
[1742799712668,0.0573576,87171.0,87167.0,0.11472]
[1742799712868,0.1488587,87168.0,87167.0,0.47552]
[1742799713074,0.1488587,87168.0,87167.0,0.47612]
[1742799713578,0.1488587,87168.0,87167.0,0.50922]
[1742799713773,0.1488587,87168.0,87167.0,0.53932]
[1742799713975,0.03414,87168.0,87167.0,0.53932]
[1742799714170,0.0333,87168.0,87167.0,0.53932]
[1742799714583,0.0333,87168.0,87167.0,0.54232]
[1742799714785,0.0333,87168.0,87167.0,0.66068]
[1742799715782,0.0343,87168.0,87167.0,0.67288354]
[1742799716280,0.0343,87168.0,87167.0,0.67228354]
[1742799719581,0.001,87168.0,87167.0,0.67228354]
[1742799719770,0.0339,87168.0,87167.0,0.67228354]
[1742799719974,0.0339,87168.0,87167.0,0.55392354]
[1742799720179,0.0339,87168.0,87167.0,0.67228354]
[1742799720375,0.0339,87168.0,87167.0,0.67288354]
[1742799720376,0.1486187,87168.0,87167.0,0.67288354]
[1742799720578,0.1495387,87168.0,87167.0,0.55452354]
[1742799720779,0.1495387,87168.0,87167.0,0.67288354]
[1742799720976,0.1495387,87168.0,87167.0,0.54332]
[1742799721184,0.26426035,87168.0,87167.0,0.0046]
[1742799721380,0.26426035,87168.0,87167.0,0.004]
[1742799721682,0.26426035,87168.0,87167.0,0.11872]
[1742799721883,0.26426035,87168.0,87167.0,0.11936]
[1742799722080,0.14954165,87168.0,87167.0,0.11936]
[1742799722285,0.03482,87168.0,87167.0,0.18246]
[1742799722487,0.0339,87168.0,87167.0,0.21416]
[1742799722786,0.00192,87168.0,87167.0,0.21416]
[1742799722978,0.001,87168.0,87167.0,0.21416]
[1742799723780,0.0323,87168.0,87167.0,0.21416]
[1742799726289,0.00017214,87176.0,87175.0,0.1147094]
[1742799726481,0.00017214,87176.0,87175.0,0.4761094]
[1742799726783,0.0314,87186.0,87185.0,0.1146963]
[1742799726996,0.0004,87192.0,87185.0,0.1146963]
[1742799726997,0.0004,87192.0,87191.0,0.1146884]
[1742799727288,0.00124,87192.0,87191.0,0.4760884]
[1742799727483,0.0004,87192.0,87191.0,0.4760884]
[1742799727787,0.0004,87192.0,87191.0,0.484797]
[1742799728091,0.0004,87192.0,87191.0,0.546797]
[1742799728385,0.0024,87192.0,87191.0,0.546797]
[1742799728785,0.0338,87192.0,87191.0,0.546797]
[1742799729182,0.0338,87192.0,87191.0,0.5380884]
[1742799729485,0.0338,87192.0,87191.0,0.0006]
[1742799729486,0.29617717,87192.0,87191.0,0.0006]
[1742799729689,0.32991717,87192.0,87191.0,0.1146884]
[1742799729880,0.32991717,87192.0,87191.0,0.1153684]
[1742799733882,0.32991717,87192.0,87191.0,0.1473684]
[1742799734385,0.32991717,87192.0,87191.0,0.1153684]
[1742799735788,0.32991717,87192.0,87191.0,0.00068]
[1742799735982,0.1146976,87184.0,87183.0,0.00017204]
[1742799736283,0.1155376,87184.0,87183.0,0.00081204]
[1742799736890,0.1764376,87184.0,87183.0,0.11551094]
[1742799737195,0.1764376,87184.0,87183.0,0.00181204]
[1742799737390,0.30285553,87184.0,87183.0,0.00181204]
[1742799737789,0.30285553,87184.0,87183.0,0.00117204]
[1742799737985,0.30201553,87184.0,87183.0,0.00217204]
[1742799739684,0.1147173,87170.0,87168.0,0.3608]
[1742799739894,0.1147173,87169.0,87168.0,0.3608]
[1742799740190,0.1147173,87169.0,87168.0,0.4755187]
[1742799740790,0.1147173,87169.0,87168.0,0.4805187]
[1742799740990,0.1147173,87169.0,87168.0,0.4835187]
[1742799741487,0.1147173,87169.0,87168.0,0.5152187]
[1742799741891,0.0573557,87174.0,87173.0,0.1147108]
[1742799742091,0.2329484,87176.0,87175.0,0.1147094]
[1742799742800,0.34766874,87176.0,87175.0,0.1147094]
[1742799742996,0.34850874,87176.0,87175.0,0.1153094]
[1742799743588,0.34850874,87176.0,87175.0,0.1183094]
[1742799745708,0.34850874,87176.0,87175.0,0.1193094]
[1742799748006,0.2337881,87176.0,87175.0,0.1193094]
[1742799748308,0.1155481,87176.0,87175.0,0.1193094]
[1742799751806,0.1155481,87176.0,87175.0,0.4801094]
[1742799752502,0.0001717,87177.0,87175.0,0.5983494]
[1742799752699,0.0004,87192.0,87191.0,0.1146884]
[1742799752899,0.11568711,87192.0,87191.0,0.1153684]
[1742799753099,0.00100001,87192.0,87191.0,0.1153684]
[1742799754998,0.00200001,87192.0,87191.0,0.1153684]
[1742799755199,0.0014,87192.0,87191.0,0.1153684]
[1742799755908,0.0014,87192.0,87191.0,0.1477684]
[1742799756499,0.0024,87192.0,87191.0,0.1477684]
[1742799756699,0.0024,87192.0,87191.0,0.15943653]
[1742799759806,0.0024,87192.0,87191.0,0.22083653]
[1742799761511,0.0351,87192.0,87191.0,0.22083653]
[1742799766105,0.0664,87192.0,87191.0,0.22083653]
[1742799767518,0.0304,87200.0,87199.0,0.1146779]
[1742799767714,0.0311,87207.0,87205.0,0.11467]
[1742799767715,0.0617,87206.0,87205.0,0.11467]
[1742799767918,0.0617,87206.0,87205.0,0.11531]
[1742799768216,0.06230001,87206.0,87205.0,0.11531]
[1742799769915,0.06630001,87206.0,87205.0,0.11531]
[1742799770920,0.18096871,87206.0,87205.0,0.11531]
[1742799771310,0.18596871,87206.0,87205.0,0.11531]
[1742799787730,0.07130001,87206.0,87205.0,0.11531]
[1742799788237,0.18596871,87206.0,87205.0,0.11531]
[1742799788431,0.18596871,87206.0,87205.0,0.14841]
[1742799790336,0.07130001,87206.0,87205.0,0.14841]
[1742799790637,0.0707,87206.0,87205.0,0.14841]
[1742799790825,0.07134,87206.0,87205.0,0.14841]
[1742799791427,0.1860087,87206.0,87205.0,0.14841]
[1742799792032,0.07134,87206.0,87205.0,0.14841]
[1742799794140,0.1860087,87206.0,87205.0,0.14841]
[1742799795039,0.07134,87206.0,87205.0,0.14841]
[1742799797238,0.1860087,87206.0,87205.0,0.14841]
[1742799797435,0.07134,87206.0,87205.0,0.14841]
[1742799797940,0.0394,87206.0,87205.0,0.14841]
[1742799798441,0.04004,87206.0,87205.0,0.14841]
[1742799799138,0.0364,87206.0,87205.0,0.14841]
[1742799799534,0.03700001,87206.0,87205.0,0.14841]
[1742799800241,0.0364,87206.0,87205.0,0.14841]
[1742799800439,0.03704,87206.0,87205.0,0.14841]
[1742799800645,0.0364,87206.0,87205.0,0.14841]
[1742799800842,0.03708,87206.0,87205.0,0.14841]
[1742799801552,0.0364,87206.0,87205.0,0.14841]
[1742799802051,0.03700001,87206.0,87205.0,0.14841]
[1742799802638,0.0364,87206.0,87205.0,0.14841]
[1742799802838,0.03700001,87206.0,87205.0,0.14841]
[1742799803437,0.0364,87206.0,87205.0,0.14841]
[1742799804044,0.03700001,87206.0,87205.0,0.14841]
[1742799804845,0.0364,87206.0,87205.0,0.14841]
[1742799805150,0.03700001,87206.0,87205.0,0.18031]
[1742799805342,0.0364,87206.0,87205.0,0.18031]
[1742799806042,0.03700001,87206.0,87205.0,0.18031]
[1742799806243,0.0364,87206.0,87205.0,0.18031]
[1742799806641,0.03700001,87206.0,87205.0,0.18031]
[1742799808349,0.0364,87206.0,87205.0,0.18031]
[1742799814649,0.03700001,87206.0,87205.0,0.18031]
[1742799815058,0.0364,87206.0,87205.0,0.29823]
[1742799815555,0.03708,87206.0,87205.0,0.29823]
[1742799817559,0.1517487,87206.0,87205.0,0.11531]
[1742799826160,0.62722036,87206.0,87205.0,0.00064]
[1742799826352,0.26642036,87206.0,87205.0,0.11467]
[1742799826554,0.26642036,87206.0,87205.0,0.11527]
[1742799826867,0.29802036,87206.0,87205.0,0.11527]
[1742799828450,0.29802036,87206.0,87205.0,0.14597]
[1742799829154,0.06868,87206.0,87205.0,0.14597]
[1742799829353,0.1833487,87206.0,87205.0,0.17767]
[1742799832254,0.1833487,87206.0,87205.0,0.11527]
[1742799833157,0.1833487,87206.0,87205.0,0.14587]
[1742799834858,0.1833487,87206.0,87205.0,0.17727]
[1742799841967,0.1833487,87206.0,87205.0,0.53807]
[1742799842374,0.06868,87206.0,87205.0,0.53807]
[1742799845464,0.068,87206.0,87205.0,0.53807]
[1742799847370,0.06860001,87206.0,87205.0,0.53807]
[1742799847566,0.18326871,87206.0,87205.0,0.53807]
[1742799848664,0.06860001,87206.0,87205.0,0.53807]
[1742799851375,0.068,87206.0,87205.0,0.53807]
[1742799851576,0.06860001,87206.0,87205.0,0.53807]
[1742799854384,0.18326871,87206.0,87205.0,0.53807]
[1742799854581,0.06860001,87206.0,87205.0,0.53807]
[1742799857877,0.068,87206.0,87205.0,0.53807]
[1742799858179,0.06864,87206.0,87205.0,0.53807]
[1742799861373,0.068,87206.0,87205.0,0.53807]
[1742799861569,0.06860001,87206.0,87205.0,0.53807]
[1742799862173,0.18326871,87206.0,87205.0,0.50667]
[1742799862885,0.18326871,87206.0,87205.0,0.53967]
[1742799863574,0.06860001,87206.0,87205.0,0.53967]
[1742799868085,0.18326871,87206.0,87205.0,0.53967]
[1742799874696,0.06860001,87206.0,87205.0,0.53967]
[1742799875388,0.18326871,87206.0,87205.0,0.53967]
[1742799876095,0.06860001,87206.0,87205.0,0.53967]
[1742799876289,0.068,87206.0,87205.0,0.53967]
[1742799876497,0.1833487,87206.0,87205.0,0.53967]
[1742799877598,0.06868,87206.0,87205.0,0.53967]
[1742799877799,0.068,87206.0,87205.0,0.53967]
[1742799878100,0.06860001,87206.0,87205.0,0.53967]
[1742799879191,0.18326871,87206.0,87205.0,0.53967]
[1742799879397,0.18326871,87206.0,87205.0,0.47607]
[1742799880799,0.18326871,87206.0,87205.0,0.0006]
[1742799881092,0.0573428,87194.0,87193.0,0.1146858]
[1742799881395,0.0573428,87194.0,87193.0,0.1153258]
[1742799881583,0.0581028,87194.0,87193.0,0.1153258]
[1742799881994,0.1216028,87194.0,87193.0,0.1153258]
[1742799882394,0.1216028,87194.0,87193.0,0.1163258]
[1742799883193,0.1216028,87194.0,87193.0,0.1163258]
[1742799886098,0.1146963,87185.0,87183.0,0.00017204]
[1742799886296,0.0956,87184.0,87183.0,0.00085204]
[1742799886600,0.21125761,87184.0,87183.0,0.11555094]
[1742799887591,0.21125761,87184.0,87183.0,0.14555094]
[1742799888194,0.21125761,87184.0,87183.0,0.14855094]
[1742799888592,0.21125761,87184.0,87183.0,0.15255094]
[1742799888903,0.09656001,87184.0,87183.0,0.15255094]
[1742799889095,0.21125761,87184.0,87183.0,0.15255094]
[1742799901709,0.21125761,87184.0,87183.0,0.12255094]
[1742799902805,0.21125761,87184.0,87183.0,0.18735094]
[1742799903508,0.03386001,87184.0,87183.0,0.18735094]
[1742799903705,0.0328,87191.0,87190.0,0.1146897]
[1742799903908,0.03348,87191.0,87190.0,0.4760897]
[1742799904207,0.0573401,87198.0,87193.0,0.1146858]
[1742799904208,0.0308,87194.0,87193.0,0.1146858]
[1742799904411,0.0636,87194.0,87193.0,0.12666546]
[1742799904591,0.06432,87194.0,87193.0,0.12666546]
[1742799904798,8e-05,87199.0,87198.0,0.1146792]
[1742799904999,0.00076,87199.0,87198.0,0.1153192]
[1742799905507,0.1153579,87199.0,87198.0,0.1153192]
[1742799905809,0.1153579,87199.0,87198.0,0.1811192]
[1742799906307,0.1810579,87199.0,87198.0,0.1811192]
[1742799906707,0.1820579,87199.0,87198.0,0.1811192]
[1742799907009,0.06738,87199.0,87198.0,0.1811192]
[1742799908106,0.1820579,87199.0,87198.0,0.1811192]
[1742799908501,0.06738,87199.0,87198.0,0.1811192]
[1742799908904,0.00268,87199.0,87198.0,0.2133192]
[1742799909205,0.002,87199.0,87198.0,0.2133192]
[1742799909398,0.0345,87199.0,87198.0,0.2133192]
[1742799912099,0.0646,87199.0,87198.0,0.2133192]
[1742799912305,0.1792779,87199.0,87198.0,0.1811192]
[1742799912507,0.09628,87199.0,87198.0,0.1811192]
[1742799913807,0.0956,87199.0,87198.0,0.1811192]
[1742799914208,0.09636,87199.0,87198.0,0.1811192]
[1742799916413,0.06536,87199.0,87198.0,0.1811192]
[1742799916611,0.0646,87199.0,87198.0,0.1811192]